[Event "Titled Tuesday Blitz October 04 Early 2022"]
[White "Paravyan, David"]
[Black "Saravana, Krishnan P."]
[WhiteFideId "4194985"]
[BlackFideId "5018382"]
[WhiteElo "2555"]
[BlackElo "2155"]
[Result "1-0"]
[Round "01"]
[TimeControl "180+1"]
[Date "2022.10.04"]
[WhiteClock "0:00:15"]
[BlackClock "0:00:30"]

1. e4 {[%clk 0:03:00]}  c6 {[%clk 0:02:58]} 2. d4 {[%clk 0:03:00]}  d5 {[%clk 0:02:58]} 3. e5 {[%clk 0:02:59]}  Qb6 {[%clk 0:02:57]} 4. Ne2 {[%clk 0:02:53]}  Bg4 {[%clk 0:02:39]} 5. Nbc3 {[%clk 0:02:47]}  e6 {[%clk 0:02:38]} 6. h3 {[%clk 0:02:46]}  Bh5 {[%clk 0:02:38]} 7. g4 {[%clk 0:02:46]}  Bg6 {[%clk 0:02:38]} 8. Nf4 {[%clk 0:02:47]}  c5 {[%clk 0:02:36]} 9. Be3 {[%clk 0:02:11]}  Nc6 {[%clk 0:02:27]} 10. dxc5 {[%clk 0:01:49]}  Qxb2 {[%clk 0:02:26]} 11. Nb5 {[%clk 0:01:44]}  Qb4+ {[%clk 0:02:22]} 12. c3 {[%clk 0:01:11]}  Qa5 {[%clk 0:02:22]} 13. Nxg6 {[%clk 0:01:03]}  hxg6 {[%clk 0:02:20]} 14. Qb3 {[%clk 0:00:46]}  a6 {[%clk 0:02:08]} 15. Nd6+ {[%clk 0:00:46]}  Bxd6 {[%clk 0:02:07]} 16. exd6 {[%clk 0:00:45]}  Nf6 {[%clk 0:01:59]} 17. Bg2 {[%clk 0:00:43]}  Nd7 {[%clk 0:01:50]} 18. Qxb7 {[%clk 0:00:22]}  Qxc3+ {[%clk 0:01:49]} 19. Ke2 {[%clk 0:00:23]}  Rb8 {[%clk 0:01:39]} 20. Qxc6 {[%clk 0:00:19]}  Qb2+ {[%clk 0:01:13]} 21. Kf3 {[%clk 0:00:19]}  Qf6+ {[%clk 0:00:56]} 22. Kg3 {[%clk 0:00:18]}  Qe5+ {[%clk 0:00:55]} 23. Bf4 {[%clk 0:00:17]}  Qc3+ {[%clk 0:00:54]} 24. Kh2 {[%clk 0:00:18]}  Qd4 {[%clk 0:00:50]} 25. Bg3 {[%clk 0:00:18]}  Qxg4 {[%clk 0:00:50]} 26. Rhb1 {[%clk 0:00:18]}  Rd8 {[%clk 0:00:46]} 27. Rb7 {[%clk 0:00:17]}  Qd4 {[%clk 0:00:43]} 28. Rxd7 {[%clk 0:00:15]}  Rxd7 {[%clk 0:00:42]} 29. Rb1 {[%clk 0:00:15]}  O-O {[%clk 0:00:30]} 30. Qxd7 {[%clk 0:00:15]} 1-0


[Site "https://www.chess.com"]

[Event "Titled Tuesday Blitz October 04 Early 2022"]
[White "Perez Gormaz, Matias"]
[Black "Andreikin, Dmitry"]
[WhiteFideId "3406342"]
[BlackFideId "4158814"]
[WhiteElo "2341"]
[BlackElo "2736"]
[Result "0-1"]
[Round "01"]
[TimeControl "180+1"]
[Date "2022.10.04"]
[WhiteClock "0:00:09"]
[BlackClock "0:01:37"]

1. e4 {[%clk 0:02:59]}  e6 {[%clk 0:02:57]} 2. d4 {[%clk 0:02:55]}  d5 {[%clk 0:02:57]} 3. exd5 {[%clk 0:02:56]}  exd5 {[%clk 0:02:57]} 4. Nf3 {[%clk 0:02:57]}  Nf6 {[%clk 0:02:57]} 5. Bd3 {[%clk 0:02:57]}  c5 {[%clk 0:02:55]} 6. dxc5 {[%clk 0:02:46]}  Bxc5 {[%clk 0:02:54]} 7. O-O {[%clk 0:02:46]}  O-O {[%clk 0:02:54]} 8. Nbd2 {[%clk 0:02:44]}  Nc6 {[%clk 0:02:52]} 9. Nb3 {[%clk 0:02:44]}  Bb6 {[%clk 0:02:53]} 10. Bg5 {[%clk 0:02:43]}  h6 {[%clk 0:02:53]} 11. Bh4 {[%clk 0:02:42]}  g5 {[%clk 0:02:53]} 12. Bg3 {[%clk 0:02:42]}  Ne4 {[%clk 0:02:53]} 13. c4 {[%clk 0:01:56]}  Be6 {[%clk 0:02:39]} 14. Rc1 {[%clk 0:01:47]}  Nxg3 {[%clk 0:02:21]} 15. hxg3 {[%clk 0:01:46]}  Qf6 {[%clk 0:02:21]} 16. cxd5 {[%clk 0:01:39]}  Bxd5 {[%clk 0:02:21]} 17. Bh7+ {[%clk 0:01:39]}  Kxh7 {[%clk 0:02:21]} 18. Qxd5 {[%clk 0:01:40]}  Rad8 {[%clk 0:02:19]} 19. Qe4+ {[%clk 0:01:39]}  Kg7 {[%clk 0:02:13]} 20. Rc2 {[%clk 0:01:30]}  Rfe8 {[%clk 0:02:11]} 21. Qg4 {[%clk 0:01:25]}  Qg6 {[%clk 0:02:03]} 22. Rd2 {[%clk 0:01:17]}  Re4 {[%clk 0:02:00]} 23. Qh3 {[%clk 0:00:42]}  g4 {[%clk 0:02:00]} 24. Qh2 {[%clk 0:00:43]}  gxf3 {[%clk 0:01:58]} 25. gxf3 {[%clk 0:00:44]}  Ne5 {[%clk 0:01:49]} 26. Qg2 {[%clk 0:00:40]}  Rxd2 {[%clk 0:01:47]} 27. Nxd2 {[%clk 0:00:40]}  Re2 {[%clk 0:01:48]} 28. Nb3 {[%clk 0:00:32]}  Qd3 {[%clk 0:01:45]} 29. f4 {[%clk 0:00:29]}  Nf3+ {[%clk 0:01:43]} 30. Kh1 {[%clk 0:00:29]}  Qd5 {[%clk 0:01:43]} 31. g4 {[%clk 0:00:18]}  Rxb2 {[%clk 0:01:43]} 32. Nc1 {[%clk 0:00:11]}  Rd2 {[%clk 0:01:39]} 33. g5 {[%clk 0:00:09]}  hxg5 {[%clk 0:01:37]} 34. fxg5 {[%clk 0:00:09]}  Rd1 {[%clk 0:01:37]} 0-1


[Site "https://www.chess.com"]

[Event "Titled Tuesday Blitz October 04 Early 2022"]
[White "Safarli, Eltaj"]
[Black "Ilkhomi, Jaloliddin"]
[WhiteFideId "13402129"]
[BlackFideId "14700948"]
[WhiteElo "2634"]
[BlackElo "2045"]
[Result "1-0"]
[Round "01"]
[TimeControl "180+1"]
[Date "2022.10.04"]
[WhiteClock "0:00:25"]
[BlackClock "0:00:03"]

1. e4 {[%clk 0:03:00]}  e6 {[%clk 0:02:57]} 2. d4 {[%clk 0:02:59]}  d5 {[%clk 0:02:57]} 3. Nd2 {[%clk 0:03:00]}  Nf6 {[%clk 0:02:53]} 4. Bd3 {[%clk 0:02:45]}  c5 {[%clk 0:02:52]} 5. c3 {[%clk 0:02:44]}  Nc6 {[%clk 0:02:51]} 6. Ngf3 {[%clk 0:02:41]}  cxd4 {[%clk 0:02:25]} 7. cxd4 {[%clk 0:02:42]}  Bb4 {[%clk 0:02:19]} 8. e5 {[%clk 0:02:39]}  Ne4 {[%clk 0:02:17]} 9. O-O {[%clk 0:02:37]}  Nxd2 {[%clk 0:02:16]} 10. Bxd2 {[%clk 0:02:38]}  Bxd2 {[%clk 0:02:17]} 11. Qxd2 {[%clk 0:02:39]}  Bd7 {[%clk 0:02:11]} 12. Rac1 {[%clk 0:02:30]}  Qe7 {[%clk 0:02:02]} 13. Rc3 {[%clk 0:02:25]}  O-O-O {[%clk 0:01:53]} 14. b4 {[%clk 0:02:23]}  Kb8 {[%clk 0:01:41]} 15. Rb1 {[%clk 0:02:06]}  Rc8 {[%clk 0:01:24]} 16. b5 {[%clk 0:02:06]}  Nd8 {[%clk 0:01:24]} 17. a4 {[%clk 0:01:58]}  b6 {[%clk 0:01:17]} 18. a5 {[%clk 0:01:57]}  Rxc3 {[%clk 0:01:17]} 19. Qxc3 {[%clk 0:01:58]}  Nb7 {[%clk 0:01:18]} 20. a6 {[%clk 0:01:27]}  Na5 {[%clk 0:01:13]} 21. Qd2 {[%clk 0:01:05]}  h6 {[%clk 0:01:04]} 22. h4 {[%clk 0:01:04]}  Rc8 {[%clk 0:01:04]} 23. Qf4 {[%clk 0:01:00]}  Nc4 {[%clk 0:00:56]} 24. Bxc4 {[%clk 0:00:57]}  Rxc4 {[%clk 0:00:57]} 25. h5 {[%clk 0:00:51]}  Be8 {[%clk 0:00:52]} 26. Qg4 {[%clk 0:00:41]}  g5 {[%clk 0:00:39]} 27. hxg6 {[%clk 0:00:40]}  fxg6 {[%clk 0:00:40]} 28. Qf4 {[%clk 0:00:39]}  g5 {[%clk 0:00:29]} 29. Qf6 {[%clk 0:00:39]}  Qxf6 {[%clk 0:00:17]} 30. exf6 {[%clk 0:00:40]}  Rc7 {[%clk 0:00:17]} 31. Ne5 {[%clk 0:00:40]}  Bf7 {[%clk 0:00:11]} 32. Re1 {[%clk 0:00:36]}  Kc8 {[%clk 0:00:12]} 33. g4 {[%clk 0:00:31]}  Be8 {[%clk 0:00:06]} 34. Kg2 {[%clk 0:00:29]}  Kd8 {[%clk 0:00:06]} 35. Kg3 {[%clk 0:00:27]}  Bxb5 {[%clk 0:00:05]} 36. Rh1 {[%clk 0:00:26]}  Rh7 {[%clk 0:00:05]} 37. f4 {[%clk 0:00:27]}  gxf4+ {[%clk 0:00:03]} 38. Kxf4 {[%clk 0:00:28]}  Ke8 {[%clk 0:00:02]} 39. Ke3 {[%clk 0:00:25]}  Kf8 {[%clk 0:00:02]} 40. g5 {[%clk 0:00:25]}  hxg5 {[%clk 0:00:03]} 41. Rxh7 {[%clk 0:00:25]} 1-0


[Site "https://www.chess.com"]

[Event "Titled Tuesday Blitz October 04 Early 2022"]
[White "Urbina Perez, Juan Antonio"]
[Black "Svane, Rasmus"]
[WhiteFideId "2217368"]
[BlackFideId "4657101"]
[WhiteElo "2197"]
[BlackElo "2674"]
[Result "0-1"]
[Round "01"]
[TimeControl "180+1"]
[Date "2022.10.04"]
[WhiteClock "0:01:50"]
[BlackClock "0:00:53"]

1. e4 {[%clk 0:02:59]}  c6 {[%clk 0:02:58]} 2. d4 {[%clk 0:02:57]}  d5 {[%clk 0:02:58]} 3. Nd2 {[%clk 0:02:57]}  dxe4 {[%clk 0:02:58]} 4. Nxe4 {[%clk 0:02:58]}  Nf6 {[%clk 0:02:59]} 5. Nxf6+ {[%clk 0:02:58]}  exf6 {[%clk 0:03:00]} 6. c3 {[%clk 0:02:57]}  Bd6 {[%clk 0:02:59]} 7. Bd3 {[%clk 0:02:58]}  O-O {[%clk 0:03:00]} 8. Qc2 {[%clk 0:02:58]}  Re8+ {[%clk 0:03:01]} 9. Ne2 {[%clk 0:02:58]}  h5 {[%clk 0:03:01]} 10. Be3 {[%clk 0:02:57]}  Nd7 {[%clk 0:03:01]} 11. O-O-O {[%clk 0:02:56]}  Nf8 {[%clk 0:03:02]} 12. Kb1 {[%clk 0:02:55]}  Be6 {[%clk 0:03:01]} 13. h3 {[%clk 0:02:55]}  b5 {[%clk 0:02:44]} 14. g4 {[%clk 0:02:54]}  h4 {[%clk 0:02:38]} 15. g5 {[%clk 0:02:54]}  fxg5 {[%clk 0:02:32]} 16. Bxg5 {[%clk 0:02:55]}  Qxg5 {[%clk 0:02:30]} 17. Rhg1 {[%clk 0:02:53]}  Qf6 {[%clk 0:02:21]} 18. f4 {[%clk 0:02:42]}  Bc4 {[%clk 0:02:16]} 19. Rg2 {[%clk 0:02:35]}  Bxd3 {[%clk 0:01:55]} 20. Qxd3 {[%clk 0:02:36]}  Ng6 {[%clk 0:01:55]} 21. Rdg1 {[%clk 0:02:33]}  Bxf4 {[%clk 0:01:18]} 22. Rf2 {[%clk 0:02:09]}  Re3 {[%clk 0:01:06]} 23. Qc2 {[%clk 0:02:09]}  Rae8 {[%clk 0:01:04]} 24. Rgf1 {[%clk 0:02:04]}  Qg5 {[%clk 0:00:59]} 25. a3 {[%clk 0:01:56]}  Bg3 {[%clk 0:00:57]} 26. Rxf7 {[%clk 0:01:53]}  Rxe2 {[%clk 0:00:54]} 27. Qb3 {[%clk 0:01:53]}  Qd5 {[%clk 0:00:53]} 28. Qb4 {[%clk 0:01:50]}  Re1+ {[%clk 0:00:53]} 0-1


[Site "https://www.chess.com"]

[Event "Titled Tuesday Blitz October 04 Early 2022"]
[White "Andreikin, Dmitry"]
[Black "Girel, Joseph"]
[WhiteFideId "4158814"]
[BlackFideId "36033561"]
[WhiteElo "2736"]
[BlackElo "2281"]
[Result "1-0"]
[Round "02"]
[TimeControl "180+1"]
[Date "2022.10.04"]
[WhiteClock "0:01:10"]
[BlackClock "0:00:03"]

1. Nf3 {[%clk 0:03:00]}  d5 {[%clk 0:02:55]} 2. g3 {[%clk 0:03:01]}  Nf6 {[%clk 0:02:53]} 3. Bg2 {[%clk 0:03:01]}  e6 {[%clk 0:02:53]} 4. O-O {[%clk 0:03:01]}  Be7 {[%clk 0:02:53]} 5. d3 {[%clk 0:03:01]}  O-O {[%clk 0:02:50]} 6. Bf4 {[%clk 0:03:00]}  c5 {[%clk 0:02:48]} 7. a4 {[%clk 0:02:59]}  Nc6 {[%clk 0:02:48]} 8. e4 {[%clk 0:02:58]}  d4 {[%clk 0:02:40]} 9. Na3 {[%clk 0:02:56]}  Nd7 {[%clk 0:02:39]} 10. Nc4 {[%clk 0:02:54]}  f6 {[%clk 0:02:35]} 11. e5 {[%clk 0:02:53]}  f5 {[%clk 0:02:31]} 12. h4 {[%clk 0:02:51]}  Nb6 {[%clk 0:02:23]} 13. Ng5 {[%clk 0:02:30]}  Nxc4 {[%clk 0:02:13]} 14. dxc4 {[%clk 0:02:27]}  h6 {[%clk 0:02:10]} 15. Qh5 {[%clk 0:02:25]}  Qe8 {[%clk 0:01:55]} 16. Qxe8 {[%clk 0:02:25]}  Rxe8 {[%clk 0:01:56]} 17. Nf3 {[%clk 0:02:24]}  Bd7 {[%clk 0:01:54]} 18. Ne1 {[%clk 0:02:20]}  Na5 {[%clk 0:01:46]} 19. b3 {[%clk 0:02:17]}  Bc6 {[%clk 0:01:46]} 20. Nd3 {[%clk 0:02:17]}  Bxg2 {[%clk 0:01:45]} 21. Kxg2 {[%clk 0:02:18]}  Nc6 {[%clk 0:01:42]} 22. Kf3 {[%clk 0:02:17]}  g5 {[%clk 0:01:40]} 23. Bd2 {[%clk 0:02:14]}  Kg7 {[%clk 0:01:40]} 24. Rh1 {[%clk 0:02:08]}  b6 {[%clk 0:01:39]} 25. Rh2 {[%clk 0:02:01]}  a5 {[%clk 0:01:35]} 26. hxg5 {[%clk 0:01:55]}  hxg5 {[%clk 0:01:33]} 27. g4 {[%clk 0:01:56]}  f4 {[%clk 0:01:29]} 28. Rah1 {[%clk 0:01:42]}  Rh8 {[%clk 0:01:29]} 29. Rh5 {[%clk 0:01:43]}  Rxh5 {[%clk 0:01:22]} 30. gxh5 {[%clk 0:01:44]}  Kh6 {[%clk 0:01:21]} 31. Ke4 {[%clk 0:01:41]}  Rf8 {[%clk 0:01:16]} 32. f3 {[%clk 0:01:41]}  Rf5 {[%clk 0:01:16]} 33. c3 {[%clk 0:01:28]}  Bd8 {[%clk 0:01:05]} 34. b4 {[%clk 0:01:22]}  dxc3 {[%clk 0:00:52]} 35. b5 {[%clk 0:01:22]}  cxd2 {[%clk 0:00:23]} 36. bxc6 {[%clk 0:01:22]}  Rf7 {[%clk 0:00:23]} 37. Nf2 {[%clk 0:01:18]}  Rc7 {[%clk 0:00:20]} 38. Ng4+ {[%clk 0:01:17]}  Kh7 {[%clk 0:00:19]} 39. Rd1 {[%clk 0:01:17]}  Rxc6 {[%clk 0:00:09]} 40. Rxd2 {[%clk 0:01:18]}  Rc8 {[%clk 0:00:07]} 41. Rd7+ {[%clk 0:01:18]}  Kh8 {[%clk 0:00:08]} 42. Nh6 {[%clk 0:01:11]}  Bc7 {[%clk 0:00:06]} 43. Nf7+ {[%clk 0:01:11]}  Kg8 {[%clk 0:00:06]} 44. Nxg5 {[%clk 0:01:11]}  b5 {[%clk 0:00:03]} 45. h6 {[%clk 0:01:10]}  bxa4 {[%clk 0:00:02]} 46. Rg7+ {[%clk 0:01:10]}  Kh8 {[%clk 0:00:03]} 47. Nf7# {[%clk 0:01:10]} 1-0


[Site "https://www.chess.com"]

[Event "Titled Tuesday Blitz October 04 Early 2022"]
[White "Avila Pavas, Santiago"]
[Black "Lazavik, Denis"]
[WhiteFideId "4437128"]
[BlackFideId "13515110"]
[WhiteElo "2360"]
[BlackElo "2437"]
[Result "0-1"]
[Round "02"]
[TimeControl "180+1"]
[Date "2022.10.04"]
[WhiteClock "0:00:37"]
[BlackClock "0:01:25"]

1. b3 {[%clk 0:03:00]}  d5 {[%clk 0:02:59]} 2. Bb2 {[%clk 0:03:01]}  Nf6 {[%clk 0:02:58]} 3. Nf3 {[%clk 0:03:01]}  Bf5 {[%clk 0:02:57]} 4. e3 {[%clk 0:03:01]}  e6 {[%clk 0:02:56]} 5. Be2 {[%clk 0:02:59]}  h6 {[%clk 0:02:56]} 6. O-O {[%clk 0:02:59]}  Nbd7 {[%clk 0:02:51]} 7. c4 {[%clk 0:02:58]}  c6 {[%clk 0:02:48]} 8. Nc3 {[%clk 0:02:58]}  Bd6 {[%clk 0:02:48]} 9. d4 {[%clk 0:02:58]}  O-O {[%clk 0:02:47]} 10. Re1 {[%clk 0:02:58]}  Bg6 {[%clk 0:02:31]} 11. Bd3 {[%clk 0:02:56]}  Ne4 {[%clk 0:02:30]} 12. Ne2 {[%clk 0:02:38]}  Qb8 {[%clk 0:02:22]} 13. cxd5 {[%clk 0:01:52]}  exd5 {[%clk 0:02:19]} 14. Ng3 {[%clk 0:01:43]}  f5 {[%clk 0:02:12]} 15. a4 {[%clk 0:01:41]}  a5 {[%clk 0:02:03]} 16. Ba3 {[%clk 0:01:41]}  Bxa3 {[%clk 0:02:03]} 17. Rxa3 {[%clk 0:01:42]}  Qd6 {[%clk 0:02:04]} 18. Ra1 {[%clk 0:01:41]}  Rae8 {[%clk 0:02:03]} 19. Qc2 {[%clk 0:01:37]}  Bh7 {[%clk 0:01:57]} 20. Rad1 {[%clk 0:01:19]}  g5 {[%clk 0:01:56]} 21. Qb2 {[%clk 0:01:14]}  Qb4 {[%clk 0:01:43]} 22. Ne5 {[%clk 0:01:09]}  Nxe5 {[%clk 0:01:33]} 23. dxe5 {[%clk 0:01:10]}  Qc3 {[%clk 0:01:30]} 24. Qxc3 {[%clk 0:00:43]}  Nxc3 {[%clk 0:01:30]} 25. Rc1 {[%clk 0:00:42]}  Na2 {[%clk 0:01:30]} 26. Rc5 {[%clk 0:00:41]}  Nb4 {[%clk 0:01:26]} 27. Bb1 {[%clk 0:00:37]}  b6 {[%clk 0:01:25]} 0-1


[Site "https://www.chess.com"]

[Event "Titled Tuesday Blitz October 04 Early 2022"]
[White "Bacrot, Etienne"]
[Black "Hristodoulou, Panagiotis"]
[WhiteFideId "605506"]
[BlackFideId "4214340"]
[WhiteElo "2666"]
[BlackElo "2272"]
[Result "1-0"]
[Round "02"]
[TimeControl "180+1"]
[Date "2022.10.04"]
[WhiteClock "0:01:25"]
[BlackClock "0:00:49"]

1. e4 {[%clk 0:03:00]}  e5 {[%clk 0:02:58]} 2. Nf3 {[%clk 0:03:00]}  Nc6 {[%clk 0:02:58]} 3. Bb5 {[%clk 0:03:00]}  g6 {[%clk 0:02:58]} 4. h4 {[%clk 0:02:59]}  Nf6 {[%clk 0:02:57]} 5. h5 {[%clk 0:02:59]}  Nxh5 {[%clk 0:02:50]} 6. d4 {[%clk 0:02:59]}  exd4 {[%clk 0:02:45]} 7. c3 {[%clk 0:02:38]}  d3 {[%clk 0:02:24]} 8. Qxd3 {[%clk 0:02:32]}  d6 {[%clk 0:02:20]} 9. c4 {[%clk 0:02:25]}  Bd7 {[%clk 0:02:18]} 10. Nc3 {[%clk 0:02:25]}  Ne5 {[%clk 0:02:06]} 11. Nxe5 {[%clk 0:02:17]}  dxe5 {[%clk 0:02:07]} 12. Qd5 {[%clk 0:02:14]}  Bxb5 {[%clk 0:01:03]} 13. Qxb5+ {[%clk 0:01:50]}  Qd7 {[%clk 0:00:48]} 14. Qxe5+ {[%clk 0:01:48]}  Qe7 {[%clk 0:00:48]} 15. Qxh8 {[%clk 0:01:42]}  O-O-O {[%clk 0:00:49]} 16. Rxh5 {[%clk 0:01:25]} 1-0


[Site "https://www.chess.com"]

[Event "Titled Tuesday Blitz October 04 Early 2022"]
[White "Barria Zuniga, Daniel"]
[Black "Wirig, Anthony"]
[WhiteFideId "3400816"]
[BlackFideId "615013"]
[WhiteElo "2414"]
[BlackElo "2474"]
[Result "1/2-1/2"]
[Round "02"]
[TimeControl "180+1"]
[Date "2022.10.04"]
[WhiteClock "0:02:00"]
[BlackClock "0:01:52"]

1. d4 {[%clk 0:03:00]}  Nf6 {[%clk 0:02:58]} 2. c4 {[%clk 0:02:57]}  e6 {[%clk 0:02:59]} 3. Nf3 {[%clk 0:02:57]}  Bb4+ {[%clk 0:02:59]} 4. Nbd2 {[%clk 0:02:55]}  O-O {[%clk 0:02:53]} 5. g3 {[%clk 0:02:54]}  b6 {[%clk 0:02:47]} 6. Bg2 {[%clk 0:02:53]}  Bb7 {[%clk 0:02:47]} 7. O-O {[%clk 0:02:53]}  a5 {[%clk 0:02:43]} 8. Qc2 {[%clk 0:02:48]}  Bxd2 {[%clk 0:02:40]} 9. Qxd2 {[%clk 0:02:43]}  Be4 {[%clk 0:02:38]} 10. b3 {[%clk 0:02:41]}  d6 {[%clk 0:02:37]} 11. Bb2 {[%clk 0:02:41]}  Nbd7 {[%clk 0:02:37]} 12. Bh3 {[%clk 0:02:34]}  h6 {[%clk 0:02:33]} 13. Ne1 {[%clk 0:02:32]}  Bf5 {[%clk 0:02:32]} 14. Bg2 {[%clk 0:02:30]}  Be4 {[%clk 0:02:32]} 15. f3 {[%clk 0:02:28]}  Bb7 {[%clk 0:02:29]} 16. e4 {[%clk 0:02:28]}  Qe7 {[%clk 0:02:15]} 17. Nc2 {[%clk 0:02:25]}  a4 {[%clk 0:02:09]} 18. Bc3 {[%clk 0:02:18]}  axb3 {[%clk 0:02:07]} 19. axb3 {[%clk 0:02:19]}  Rxa1 {[%clk 0:02:07]} 20. Rxa1 {[%clk 0:02:19]}  Ra8 {[%clk 0:02:08]} 21. Qe1 {[%clk 0:02:17]}  Qd8 {[%clk 0:02:04]} 22. Rxa8 {[%clk 0:02:14]}  Qxa8 {[%clk 0:02:04]} 23. Qa1 {[%clk 0:02:14]}  Qxa1+ {[%clk 0:02:01]} 24. Nxa1 {[%clk 0:02:13]}  e5 {[%clk 0:01:54]} 25. Nc2 {[%clk 0:02:08]}  Kf8 {[%clk 0:01:52]} 26. Ne3 {[%clk 0:02:00]} 1/2-1/2


[Site "https://www.chess.com"]

[Event "Titled Tuesday Blitz October 04 Early 2022"]
[White "Bluebaum, Matthias"]
[Black "Ernst, Sipke"]
[WhiteFideId "24651516"]
[BlackFideId "1004689"]
[WhiteElo "2633"]
[BlackElo "2438"]
[Result "1-0"]
[Round "02"]
[TimeControl "180+1"]
[Date "2022.10.04"]
[WhiteClock "0:00:03"]
[BlackClock "0:00:01"]

1. d4 {[%clk 0:03:00]}  d5 {[%clk 0:02:59]} 2. c4 {[%clk 0:03:00]}  c6 {[%clk 0:02:59]} 3. Nf3 {[%clk 0:03:00]}  Nf6 {[%clk 0:02:59]} 4. Nc3 {[%clk 0:03:01]}  dxc4 {[%clk 0:02:59]} 5. e4 {[%clk 0:03:01]}  b5 {[%clk 0:02:56]} 6. Qc2 {[%clk 0:03:02]}  e6 {[%clk 0:02:50]} 7. Be2 {[%clk 0:03:02]}  a5 {[%clk 0:02:50]} 8. O-O {[%clk 0:03:02]}  Be7 {[%clk 0:02:49]} 9. e5 {[%clk 0:02:48]}  Nd5 {[%clk 0:02:47]} 10. Ne4 {[%clk 0:02:49]}  Nd7 {[%clk 0:02:39]} 11. b3 {[%clk 0:02:46]}  Ba6 {[%clk 0:02:36]} 12. bxc4 {[%clk 0:02:43]}  bxc4 {[%clk 0:02:29]} 13. Bxc4 {[%clk 0:02:40]}  Nb4 {[%clk 0:02:18]} 14. Qe2 {[%clk 0:02:38]}  O-O {[%clk 0:01:43]} 15. Bd2 {[%clk 0:02:17]}  Qb6 {[%clk 0:01:29]} 16. Rab1 {[%clk 0:01:57]}  Bxc4 {[%clk 0:01:22]} 17. Qxc4 {[%clk 0:01:58]}  Qa6 {[%clk 0:01:21]} 18. Qxa6 {[%clk 0:01:59]}  Rxa6 {[%clk 0:01:18]} 19. a3 {[%clk 0:01:59]}  Nd5 {[%clk 0:01:14]} 20. Rb7 {[%clk 0:02:00]}  Rd8 {[%clk 0:01:12]} 21. a4 {[%clk 0:01:21]}  c5 {[%clk 0:01:02]} 22. Rc1 {[%clk 0:01:10]}  cxd4 {[%clk 0:00:56]} 23. h4 {[%clk 0:00:29]}  h6 {[%clk 0:00:56]} 24. Rc4 {[%clk 0:00:27]}  Kf8 {[%clk 0:00:27]} 25. Rxd4 {[%clk 0:00:27]}  Nc5 {[%clk 0:00:28]} 26. Rxe7 {[%clk 0:00:17]}  Nxe4 {[%clk 0:00:24]} 27. Rb7 {[%clk 0:00:17]}  Nxd2 {[%clk 0:00:18]} 28. Nxd2 {[%clk 0:00:17]}  Raa8 {[%clk 0:00:15]} 29. Nc4 {[%clk 0:00:16]}  Rab8 {[%clk 0:00:08]} 30. Nxa5 {[%clk 0:00:15]}  Rxb7 {[%clk 0:00:08]} 31. Nxb7 {[%clk 0:00:16]}  Rb8 {[%clk 0:00:07]} 32. Nd6 {[%clk 0:00:13]}  Rb1+ {[%clk 0:00:07]} 33. Kh2 {[%clk 0:00:14]}  Rc1 {[%clk 0:00:05]} 34. Rc4 {[%clk 0:00:10]}  Ra1 {[%clk 0:00:03]} 35. Rc8+ {[%clk 0:00:09]}  Ke7 {[%clk 0:00:04]} 36. Ra8 {[%clk 0:00:06]}  f6 {[%clk 0:00:04]} 37. Ra7+ {[%clk 0:00:06]}  Kf8 {[%clk 0:00:04]} 38. exf6 {[%clk 0:00:06]}  gxf6 {[%clk 0:00:05]} 39. a5 {[%clk 0:00:06]}  Ra3 {[%clk 0:00:04]} 40. f3 {[%clk 0:00:06]}  Ra2 {[%clk 0:00:03]} 41. a6 {[%clk 0:00:05]}  Ne3 {[%clk 0:00:02]} 42. Kg3 {[%clk 0:00:05]}  Nf1+ {[%clk 0:00:02]} 43. Kg4 {[%clk 0:00:04]}  Ra5 {[%clk 0:00:02]} 44. Ra8+ {[%clk 0:00:02]}  Kg7 {[%clk 0:00:01]} 45. a7 {[%clk 0:00:03]}  h5+ {[%clk 0:00:01]} 46. Kh3 {[%clk 0:00:04]}  e5 {[%clk 0:00:01]} 47. Nc8 {[%clk 0:00:03]} 1-0


[Site "https://www.chess.com"]

[Event "Titled Tuesday Blitz October 04 Early 2022"]
[White "Bortnyk, Olexandr"]
[Black "SahaNeelash"]
[WhiteFideId "14120828"]
[WhiteElo "2723"]
[BlackElo "2702"]
[Result "1-0"]
[Round "02"]
[TimeControl "180+1"]
[Date "2022.10.04"]
[WhiteClock "0:01:59"]
[BlackClock "0:02:00"]

1. d4 {[%clk 0:03:00]}  d5 {[%clk 0:02:59]} 2. Nc3 {[%clk 0:03:00]}  Nf6 {[%clk 0:02:58]} 3. Bf4 {[%clk 0:03:00]}  c5 {[%clk 0:02:55]} 4. e4 {[%clk 0:03:00]}  Nc6 {[%clk 0:02:43]} 5. Nb5 {[%clk 0:02:46]}  e5 {[%clk 0:02:39]} 6. dxe5 {[%clk 0:02:45]}  Nxe4 {[%clk 0:02:36]} 7. Qxd5 {[%clk 0:02:36]}  Qa5+ {[%clk 0:02:19]} 8. c3 {[%clk 0:02:33]}  Bf5 {[%clk 0:02:19]} 9. Bc4 {[%clk 0:02:16]}  Bg6 {[%clk 0:02:19]} 10. e6 {[%clk 0:02:00]}  Rd8 {[%clk 0:01:59]} 11. exf7+ {[%clk 0:01:59]}  Ke7 {[%clk 0:02:00]} 12. Qe6# {[%clk 0:01:59]} 1-0


[Site "https://www.chess.com"]